{"text_format":"3","workbook":"xlsx","n_sheets":3,"sheets":["Tuntikertymä","Tiedot","Taulukot"],"not_rendered":{"defined_names":4},"read":"whole","date_system":"1900"}

{"sheet":"Tuntikertymä","index":0,"n_rows":33,"n_cols":7,"rows_kept":33}
["Päivä","Tunnit","Ylitunnit50","Ylitunnit100","Palkka","Pidätys","Maksetaan"]
["2015-01-01",8,{"$f":"VLOOKUP(Taulukko1[[#This Row],[Tunnit]],Palkkakerroin,3)","v":0},{"$f":"VLOOKUP(Taulukko1[[#This Row],[Tunnit]],Palkkakerroin,4)","v":0},{"$f":"VLOOKUP(Taulukko1[[#This Row],[Tunnit]],Palkkakerroin,2)*Tuntipalkka","v":80},{"$f":"Veroprosentti*Taulukko1[[#This Row],[Palkka]]","v":16},{"$f":"Taulukko1[[#This Row],[Palkka]]-Taulukko1[[#This Row],[Pidätys]]","v":64}]
["2015-01-02",8,{"$f":"VLOOKUP(Taulukko1[[#This Row],[Tunnit]],Palkkakerroin,3)","v":0},{"$f":"VLOOKUP(Taulukko1[[#This Row],[Tunnit]],Palkkakerroin,4)","v":0},{"$f":"VLOOKUP(Taulukko1[[#This Row],[Tunnit]],Palkkakerroin,2)*Tuntipalkka","v":80},{"$f":"Veroprosentti*Taulukko1[[#This Row],[Palkka]]","v":16},{"$f":"Taulukko1[[#This Row],[Palkka]]-Taulukko1[[#This Row],[Pidätys]]","v":64}]
["2015-01-03",8,{"$f":"VLOOKUP(Taulukko1[[#This Row],[Tunnit]],Palkkakerroin,3)","v":0},{"$f":"VLOOKUP(Taulukko1[[#This Row],[Tunnit]],Palkkakerroin,4)","v":0},{"$f":"VLOOKUP(Taulukko1[[#This Row],[Tunnit]],Palkkakerroin,2)*Tuntipalkka","v":80},{"$f":"Veroprosentti*Taulukko1[[#This Row],[Palkka]]","v":16},{"$f":"Taulukko1[[#This Row],[Palkka]]-Taulukko1[[#This Row],[Pidätys]]","v":64}]
["2015-01-04",8,{"$f":"VLOOKUP(Taulukko1[[#This Row],[Tunnit]],Palkkakerroin,3)","v":0},{"$f":"VLOOKUP(Taulukko1[[#This Row],[Tunnit]],Palkkakerroin,4)","v":0},{"$f":"VLOOKUP(Taulukko1[[#This Row],[Tunnit]],Palkkakerroin,2)*Tuntipalkka","v":80},{"$f":"Veroprosentti*Taulukko1[[#This Row],[Palkka]]","v":16},{"$f":"Taulukko1[[#This Row],[Palkka]]-Taulukko1[[#This Row],[Pidätys]]","v":64}]
["2015-01-05",null,{"$f":"VLOOKUP(Taulukko1[[#This Row],[Tunnit]],Palkkakerroin,3)","v":0},{"$f":"VLOOKUP(Taulukko1[[#This Row],[Tunnit]],Palkkakerroin,4)","v":0},{"$f":"VLOOKUP(Taulukko1[[#This Row],[Tunnit]],Palkkakerroin,2)*Tuntipalkka","v":0},{"$f":"Veroprosentti*Taulukko1[[#This Row],[Palkka]]","v":0},{"$f":"Taulukko1[[#This Row],[Palkka]]-Taulukko1[[#This Row],[Pidätys]]","v":0}]
["2015-01-06",null,{"$f":"VLOOKUP(Taulukko1[[#This Row],[Tunnit]],Palkkakerroin,3)","v":0},{"$f":"VLOOKUP(Taulukko1[[#This Row],[Tunnit]],Palkkakerroin,4)","v":0},{"$f":"VLOOKUP(Taulukko1[[#This Row],[Tunnit]],Palkkakerroin,2)*Tuntipalkka","v":0},{"$f":"Veroprosentti*Taulukko1[[#This Row],[Palkka]]","v":0},{"$f":"Taulukko1[[#This Row],[Palkka]]-Taulukko1[[#This Row],[Pidätys]]","v":0}]
["2015-01-07",9,{"$f":"VLOOKUP(Taulukko1[[#This Row],[Tunnit]],Palkkakerroin,3)","v":1},{"$f":"VLOOKUP(Taulukko1[[#This Row],[Tunnit]],Palkkakerroin,4)","v":0},{"$f":"VLOOKUP(Taulukko1[[#This Row],[Tunnit]],Palkkakerroin,2)*Tuntipalkka","v":95},{"$f":"Veroprosentti*Taulukko1[[#This Row],[Palkka]]","v":19},{"$f":"Taulukko1[[#This Row],[Palkka]]-Taulukko1[[#This Row],[Pidätys]]","v":76}]
["2015-01-08",9,{"$f":"VLOOKUP(Taulukko1[[#This Row],[Tunnit]],Palkkakerroin,3)","v":1},{"$f":"VLOOKUP(Taulukko1[[#This Row],[Tunnit]],Palkkakerroin,4)","v":0},{"$f":"VLOOKUP(Taulukko1[[#This Row],[Tunnit]],Palkkakerroin,2)*Tuntipalkka","v":95},{"$f":"Veroprosentti*Taulukko1[[#This Row],[Palkka]]","v":19},{"$f":"Taulukko1[[#This Row],[Palkka]]-Taulukko1[[#This Row],[Pidätys]]","v":76}]
["2015-01-09",null,{"$f":"VLOOKUP(Taulukko1[[#This Row],[Tunnit]],Palkkakerroin,3)","v":0},{"$f":"VLOOKUP(Taulukko1[[#This Row],[Tunnit]],Palkkakerroin,4)","v":0},{"$f":"VLOOKUP(Taulukko1[[#This Row],[Tunnit]],Palkkakerroin,2)*Tuntipalkka","v":0},{"$f":"Veroprosentti*Taulukko1[[#This Row],[Palkka]]","v":0},{"$f":"Taulukko1[[#This Row],[Palkka]]-Taulukko1[[#This Row],[Pidätys]]","v":0}]
["2015-01-10",12,{"$f":"VLOOKUP(Taulukko1[[#This Row],[Tunnit]],Palkkakerroin,3)","v":2},{"$f":"VLOOKUP(Taulukko1[[#This Row],[Tunnit]],Palkkakerroin,4)","v":2},{"$f":"VLOOKUP(Taulukko1[[#This Row],[Tunnit]],Palkkakerroin,2)*Tuntipalkka","v":150},{"$f":"Veroprosentti*Taulukko1[[#This Row],[Palkka]]","v":30},{"$f":"Taulukko1[[#This Row],[Palkka]]-Taulukko1[[#This Row],[Pidätys]]","v":120}]
["2015-01-11",12,{"$f":"VLOOKUP(Taulukko1[[#This Row],[Tunnit]],Palkkakerroin,3)","v":2},{"$f":"VLOOKUP(Taulukko1[[#This Row],[Tunnit]],Palkkakerroin,4)","v":2},{"$f":"VLOOKUP(Taulukko1[[#This Row],[Tunnit]],Palkkakerroin,2)*Tuntipalkka","v":150},{"$f":"Veroprosentti*Taulukko1[[#This Row],[Palkka]]","v":30},{"$f":"Taulukko1[[#This Row],[Palkka]]-Taulukko1[[#This Row],[Pidätys]]","v":120}]
["2015-01-12",null,{"$f":"VLOOKUP(Taulukko1[[#This Row],[Tunnit]],Palkkakerroin,3)","v":0},{"$f":"VLOOKUP(Taulukko1[[#This Row],[Tunnit]],Palkkakerroin,4)","v":0},{"$f":"VLOOKUP(Taulukko1[[#This Row],[Tunnit]],Palkkakerroin,2)*Tuntipalkka","v":0},{"$f":"Veroprosentti*Taulukko1[[#This Row],[Palkka]]","v":0},{"$f":"Taulukko1[[#This Row],[Palkka]]-Taulukko1[[#This Row],[Pidätys]]","v":0}]
["2015-01-13",null,{"$f":"VLOOKUP(Taulukko1[[#This Row],[Tunnit]],Palkkakerroin,3)","v":0},{"$f":"VLOOKUP(Taulukko1[[#This Row],[Tunnit]],Palkkakerroin,4)","v":0},{"$f":"VLOOKUP(Taulukko1[[#This Row],[Tunnit]],Palkkakerroin,2)*Tuntipalkka","v":0},{"$f":"Veroprosentti*Taulukko1[[#This Row],[Palkka]]","v":0},{"$f":"Taulukko1[[#This Row],[Palkka]]-Taulukko1[[#This Row],[Pidätys]]","v":0}]
["2015-01-14",8,{"$f":"VLOOKUP(Taulukko1[[#This Row],[Tunnit]],Palkkakerroin,3)","v":0},{"$f":"VLOOKUP(Taulukko1[[#This Row],[Tunnit]],Palkkakerroin,4)","v":0},{"$f":"VLOOKUP(Taulukko1[[#This Row],[Tunnit]],Palkkakerroin,2)*Tuntipalkka","v":80},{"$f":"Veroprosentti*Taulukko1[[#This Row],[Palkka]]","v":16},{"$f":"Taulukko1[[#This Row],[Palkka]]-Taulukko1[[#This Row],[Pidätys]]","v":64}]
["2015-01-15",8,{"$f":"VLOOKUP(Taulukko1[[#This Row],[Tunnit]],Palkkakerroin,3)","v":0},{"$f":"VLOOKUP(Taulukko1[[#This Row],[Tunnit]],Palkkakerroin,4)","v":0},{"$f":"VLOOKUP(Taulukko1[[#This Row],[Tunnit]],Palkkakerroin,2)*Tuntipalkka","v":80},{"$f":"Veroprosentti*Taulukko1[[#This Row],[Palkka]]","v":16},{"$f":"Taulukko1[[#This Row],[Palkka]]-Taulukko1[[#This Row],[Pidätys]]","v":64}]
["2015-01-16",8,{"$f":"VLOOKUP(Taulukko1[[#This Row],[Tunnit]],Palkkakerroin,3)","v":0},{"$f":"VLOOKUP(Taulukko1[[#This Row],[Tunnit]],Palkkakerroin,4)","v":0},{"$f":"VLOOKUP(Taulukko1[[#This Row],[Tunnit]],Palkkakerroin,2)*Tuntipalkka","v":80},{"$f":"Veroprosentti*Taulukko1[[#This Row],[Palkka]]","v":16},{"$f":"Taulukko1[[#This Row],[Palkka]]-Taulukko1[[#This Row],[Pidätys]]","v":64}]
["2015-01-17",8,{"$f":"VLOOKUP(Taulukko1[[#This Row],[Tunnit]],Palkkakerroin,3)","v":0},{"$f":"VLOOKUP(Taulukko1[[#This Row],[Tunnit]],Palkkakerroin,4)","v":0},{"$f":"VLOOKUP(Taulukko1[[#This Row],[Tunnit]],Palkkakerroin,2)*Tuntipalkka","v":80},{"$f":"Veroprosentti*Taulukko1[[#This Row],[Palkka]]","v":16},{"$f":"Taulukko1[[#This Row],[Palkka]]-Taulukko1[[#This Row],[Pidätys]]","v":64}]
["2015-01-18",null,{"$f":"VLOOKUP(Taulukko1[[#This Row],[Tunnit]],Palkkakerroin,3)","v":0},{"$f":"VLOOKUP(Taulukko1[[#This Row],[Tunnit]],Palkkakerroin,4)","v":0},{"$f":"VLOOKUP(Taulukko1[[#This Row],[Tunnit]],Palkkakerroin,2)*Tuntipalkka","v":0},{"$f":"Veroprosentti*Taulukko1[[#This Row],[Palkka]]","v":0},{"$f":"Taulukko1[[#This Row],[Palkka]]-Taulukko1[[#This Row],[Pidätys]]","v":0}]
["2015-01-19",null,{"$f":"VLOOKUP(Taulukko1[[#This Row],[Tunnit]],Palkkakerroin,3)","v":0},{"$f":"VLOOKUP(Taulukko1[[#This Row],[Tunnit]],Palkkakerroin,4)","v":0},{"$f":"VLOOKUP(Taulukko1[[#This Row],[Tunnit]],Palkkakerroin,2)*Tuntipalkka","v":0},{"$f":"Veroprosentti*Taulukko1[[#This Row],[Palkka]]","v":0},{"$f":"Taulukko1[[#This Row],[Palkka]]-Taulukko1[[#This Row],[Pidätys]]","v":0}]
["2015-01-20",null,{"$f":"VLOOKUP(Taulukko1[[#This Row],[Tunnit]],Palkkakerroin,3)","v":0},{"$f":"VLOOKUP(Taulukko1[[#This Row],[Tunnit]],Palkkakerroin,4)","v":0},{"$f":"VLOOKUP(Taulukko1[[#This Row],[Tunnit]],Palkkakerroin,2)*Tuntipalkka","v":0},{"$f":"Veroprosentti*Taulukko1[[#This Row],[Palkka]]","v":0},{"$f":"Taulukko1[[#This Row],[Palkka]]-Taulukko1[[#This Row],[Pidätys]]","v":0}]
["2015-01-21",8,{"$f":"VLOOKUP(Taulukko1[[#This Row],[Tunnit]],Palkkakerroin,3)","v":0},{"$f":"VLOOKUP(Taulukko1[[#This Row],[Tunnit]],Palkkakerroin,4)","v":0},{"$f":"VLOOKUP(Taulukko1[[#This Row],[Tunnit]],Palkkakerroin,2)*Tuntipalkka","v":80},{"$f":"Veroprosentti*Taulukko1[[#This Row],[Palkka]]","v":16},{"$f":"Taulukko1[[#This Row],[Palkka]]-Taulukko1[[#This Row],[Pidätys]]","v":64}]
["2015-01-22",8,{"$f":"VLOOKUP(Taulukko1[[#This Row],[Tunnit]],Palkkakerroin,3)","v":0},{"$f":"VLOOKUP(Taulukko1[[#This Row],[Tunnit]],Palkkakerroin,4)","v":0},{"$f":"VLOOKUP(Taulukko1[[#This Row],[Tunnit]],Palkkakerroin,2)*Tuntipalkka","v":80},{"$f":"Veroprosentti*Taulukko1[[#This Row],[Palkka]]","v":16},{"$f":"Taulukko1[[#This Row],[Palkka]]-Taulukko1[[#This Row],[Pidätys]]","v":64}]
["2015-01-23",8,{"$f":"VLOOKUP(Taulukko1[[#This Row],[Tunnit]],Palkkakerroin,3)","v":0},{"$f":"VLOOKUP(Taulukko1[[#This Row],[Tunnit]],Palkkakerroin,4)","v":0},{"$f":"VLOOKUP(Taulukko1[[#This Row],[Tunnit]],Palkkakerroin,2)*Tuntipalkka","v":80},{"$f":"Veroprosentti*Taulukko1[[#This Row],[Palkka]]","v":16},{"$f":"Taulukko1[[#This Row],[Palkka]]-Taulukko1[[#This Row],[Pidätys]]","v":64}]
["2015-01-24",8,{"$f":"VLOOKUP(Taulukko1[[#This Row],[Tunnit]],Palkkakerroin,3)","v":0},{"$f":"VLOOKUP(Taulukko1[[#This Row],[Tunnit]],Palkkakerroin,4)","v":0},{"$f":"VLOOKUP(Taulukko1[[#This Row],[Tunnit]],Palkkakerroin,2)*Tuntipalkka","v":80},{"$f":"Veroprosentti*Taulukko1[[#This Row],[Palkka]]","v":16},{"$f":"Taulukko1[[#This Row],[Palkka]]-Taulukko1[[#This Row],[Pidätys]]","v":64}]
["2015-01-25",8,{"$f":"VLOOKUP(Taulukko1[[#This Row],[Tunnit]],Palkkakerroin,3)","v":0},{"$f":"VLOOKUP(Taulukko1[[#This Row],[Tunnit]],Palkkakerroin,4)","v":0},{"$f":"VLOOKUP(Taulukko1[[#This Row],[Tunnit]],Palkkakerroin,2)*Tuntipalkka","v":80},{"$f":"Veroprosentti*Taulukko1[[#This Row],[Palkka]]","v":16},{"$f":"Taulukko1[[#This Row],[Palkka]]-Taulukko1[[#This Row],[Pidätys]]","v":64}]
["2015-01-26",null,{"$f":"VLOOKUP(Taulukko1[[#This Row],[Tunnit]],Palkkakerroin,3)","v":0},{"$f":"VLOOKUP(Taulukko1[[#This Row],[Tunnit]],Palkkakerroin,4)","v":0},{"$f":"VLOOKUP(Taulukko1[[#This Row],[Tunnit]],Palkkakerroin,2)*Tuntipalkka","v":0},{"$f":"Veroprosentti*Taulukko1[[#This Row],[Palkka]]","v":0},{"$f":"Taulukko1[[#This Row],[Palkka]]-Taulukko1[[#This Row],[Pidätys]]","v":0}]
["2015-01-27",null,{"$f":"VLOOKUP(Taulukko1[[#This Row],[Tunnit]],Palkkakerroin,3)","v":0},{"$f":"VLOOKUP(Taulukko1[[#This Row],[Tunnit]],Palkkakerroin,4)","v":0},{"$f":"VLOOKUP(Taulukko1[[#This Row],[Tunnit]],Palkkakerroin,2)*Tuntipalkka","v":0},{"$f":"Veroprosentti*Taulukko1[[#This Row],[Palkka]]","v":0},{"$f":"Taulukko1[[#This Row],[Palkka]]-Taulukko1[[#This Row],[Pidätys]]","v":0}]
["2015-01-28",null,{"$f":"VLOOKUP(Taulukko1[[#This Row],[Tunnit]],Palkkakerroin,3)","v":0},{"$f":"VLOOKUP(Taulukko1[[#This Row],[Tunnit]],Palkkakerroin,4)","v":0},{"$f":"VLOOKUP(Taulukko1[[#This Row],[Tunnit]],Palkkakerroin,2)*Tuntipalkka","v":0},{"$f":"Veroprosentti*Taulukko1[[#This Row],[Palkka]]","v":0},{"$f":"Taulukko1[[#This Row],[Palkka]]-Taulukko1[[#This Row],[Pidätys]]","v":0}]
["2015-01-29",null,{"$f":"VLOOKUP(Taulukko1[[#This Row],[Tunnit]],Palkkakerroin,3)","v":0},{"$f":"VLOOKUP(Taulukko1[[#This Row],[Tunnit]],Palkkakerroin,4)","v":0},{"$f":"VLOOKUP(Taulukko1[[#This Row],[Tunnit]],Palkkakerroin,2)*Tuntipalkka","v":0},{"$f":"Veroprosentti*Taulukko1[[#This Row],[Palkka]]","v":0},{"$f":"Taulukko1[[#This Row],[Palkka]]-Taulukko1[[#This Row],[Pidätys]]","v":0}]
["2015-01-30",null,{"$f":"VLOOKUP(Taulukko1[[#This Row],[Tunnit]],Palkkakerroin,3)","v":0},{"$f":"VLOOKUP(Taulukko1[[#This Row],[Tunnit]],Palkkakerroin,4)","v":0},{"$f":"VLOOKUP(Taulukko1[[#This Row],[Tunnit]],Palkkakerroin,2)*Tuntipalkka","v":0},{"$f":"Veroprosentti*Taulukko1[[#This Row],[Palkka]]","v":0},{"$f":"Taulukko1[[#This Row],[Palkka]]-Taulukko1[[#This Row],[Pidätys]]","v":0}]
["2015-01-31",null,{"$f":"VLOOKUP(Taulukko1[[#This Row],[Tunnit]],Palkkakerroin,3)","v":0},{"$f":"VLOOKUP(Taulukko1[[#This Row],[Tunnit]],Palkkakerroin,4)","v":0},{"$f":"VLOOKUP(Taulukko1[[#This Row],[Tunnit]],Palkkakerroin,2)*Tuntipalkka","v":0},{"$f":"Veroprosentti*Taulukko1[[#This Row],[Palkka]]","v":0},{"$f":"Taulukko1[[#This Row],[Palkka]]-Taulukko1[[#This Row],[Pidätys]]","v":0}]
["Summa",{"$f":"SUBTOTAL(109,Taulukko1[Tunnit])","v":146},{"$f":"SUBTOTAL(109,Taulukko1[Ylitunnit50])","v":6},{"$f":"SUBTOTAL(109,Taulukko1[Ylitunnit100])","v":4},{"$f":"SUBTOTAL(109,Taulukko1[Palkka])","v":1530},{"$f":"SUBTOTAL(109,Taulukko1[Pidätys])","v":306},{"$f":"SUBTOTAL(109,Taulukko1[Maksetaan])","v":1224}]

{"sheet":"Tiedot","index":1,"n_rows":3,"n_cols":2,"rows_kept":3}
["Tuntipalkka",10]
["Veroprosentti",{"v":0.2,"d":"20%"}]
["Lisäprosentti",{"v":0.4,"d":"40%"}]

{"sheet":"Taulukot","index":2,"n_rows":18,"n_cols":5,"rows_kept":18}
["Tunnit","Kerroin","Yli50","Yli100","Pyhä"]
[0,0,null,null,0]
[1,1,null,null,2]
[2,2,null,null,4]
[3,3,null,null,6]
[4,4,null,null,8]
[5,5,null,null,10]
[6,6,null,null,12]
[7,7,null,null,14]
[8,8,null,null,16]
[9,9.5,1,null,18.5]
[10,11,2,null,21]
[11,13,2,1,24]
[12,15,2,2,27]
[13,17,2,3,30]
[14,19,2,4,33]
[15,21,2,5,36]
[16,23,2,6,39]